fUST/lending_fUST_20251006
["ID","MTS","AMOUNT","RATE_DAILY","PERIOD"]
[389574949,1759723852317,-151.0,0.00016438,2]
[389574951,1759723852326,-151.0,0.00016438,2]
[389574954,1759723852335,-151.0,0.00016438,2]
[389574955,1759723852345,-785.32603,0.00016438,2]
[389574958,1759723852355,-151.0,0.00016438,2]
[389574960,1759723852364,-500.0,0.00016438,2]
[389574962,1759723852373,-500.0,0.00016438,2]
[389574964,1759723852382,-785.32603,0.00016438,2]
[389574966,1759723852392,-151.0,0.00016438,2]
[389574968,1759723852401,-500.0,0.00016438,2]
[389574970,1759723852410,-500.0,0.00016438,2]
[389574972,1759723852419,-785.32603,0.00016438,2]
[389574974,1759723852428,-151.0,0.00016438,2]
[389574976,1759723852437,-500.0,0.00016438,2]
[389574977,1759723852446,-785.32603,0.00016438,2]
[389574980,1759723852455,-500.0,0.00016438,2]
[389574982,1759723852464,-207.140824,0.00016438,2]
[389574984,1759723852474,-785.32603,0.00016438,2]
[389574986,1759723852483,-500.0,0.00016438,2]
[389574987,1759723852493,-500.0,0.00016438,2]
[389574990,1759723852502,-785.32603,0.00016438,2]
[389574992,1759723852512,-500.0,0.00016438,2]
[389574994,1759723852521,-785.32603,0.00016438,2]
[389574996,1759723852530,-500.0,0.00016438,2]
[389574997,1759723852539,-785.32603,0.00016438,2]
[389575000,1759723852549,-500.0,0.00016438,2]
[389575002,1759723852558,-500.0,0.00016438,2]
[389575003,1759723852567,-785.32603,0.00016438,2]
[389575006,1759723852579,-500.0,0.00016438,2]
[389575008,1759723852590,-465.08,0.00016438,2]
[389575010,1759723852600,-785.32603,0.00016438,2]
[389575012,1759723852609,-785.32603,0.00016438,2]
[389575014,1759723852618,-785.32603,0.00016438,2]
[389575016,1759723852627,-785.32603,0.00016438,2]
[389575018,1759723852636,-785.32603,0.00016438,2]
[389575019,1759723852645,-785.32603,0.00016438,2]
[389575022,1759723852655,-293.70738,0.00016438,2]
[389575023,1759723852664,-785.32603,0.00016438,2]
[389575025,1759723852673,-293.70738,0.00016438,2]
[389575027,1759723852682,-785.32603,0.00016438,2]
[389575029,1759723852691,-293.70738,0.00016438,2]
[389575031,1759723852700,-785.32603,0.00016438,2]
[389575033,1759723852710,-293.70738,0.00016438,2]
[389575035,1759723852719,-785.32603,0.00016438,2]
[389575038,1759723852729,-293.70738,0.00016438,2]
[389575039,1759723852738,-502.14236615,0.00016438,2]
[389575041,1759723852747,-785.32602,0.00016438,2]
[389575043,1759723852756,-293.70738,0.00016438,2]
[389575045,1759723852766,-293.70738,0.00016438,2]
[389575048,1759723852776,-293.70738,0.00016438,2]
[389575050,1759723852785,-293.70738,0.00016438,2]
[389575052,1759723852794,-293.70738,0.00016438,2]
[389575054,1759723852803,-293.70738,0.00016438,2]
[389575055,1759723852812,-293.70738,0.00016438,2]
[389575057,1759723852821,-500.0,0.00016438,2]
[389575060,1759723852831,-293.70738,0.00016438,2]
[389575062,1759723852840,-293.70738,0.00016438,2]
[389575064,1759723852849,-293.70738,0.00016438,2]
[389575066,1759723852859,-293.70738,0.00016438,2]
[389575067,1759723852868,-293.70738,0.00016438,2]
[389575069,1759723852878,-502.97318254,0.00016438,2]
[389575071,1759723852887,-293.70738,0.00016438,2]
[389575074,1759723852898,-293.70738,0.00016438,2]
[389575076,1759723852907,-293.707376,0.00016438,2]
[389575078,1759723852916,-500.0,0.00016438,2]
[389575080,1759723852926,-151.0,0.00016438,2]
[389575082,1759723852935,-500.0,0.00016438,2]
[389575084,1759723852944,-500.0,0.00016438,2]
[389575086,1759723852954,-500.0,0.00016438,2]
[389575088,1759723852963,-260.17203723,0.00016438,2]
[389575090,1759723852972,-151.0,0.00016438,2]
[389575092,1759723852981,-151.0,0.00016438,2]
[389575094,1759723852990,-260.32473569,0.00016438,2]
[389575096,1759723853000,-151.0,0.00016438,2]
[389575098,1759723853009,-970.74,0.00016438,2]
[389575100,1759723853019,-153.903544,0.00016438,2]
[389575101,1759723853028,-151.0,0.00016438,2]
[389575103,1759723853037,-500.0,0.00016438,2]
[389575105,1759723853047,-151.0,0.00016438,2]
[389575107,1759723853056,-2049.78,0.00016438,2]
[389575109,1759723853066,-198.86694394,0.00016438,2]
[389575111,1759723853075,-151.0,0.00016438,2]
[389575113,1759723853084,-151.0,0.00016438,2]
[389575115,1759723853094,-151.747251,0.00016438,2]
[389575118,1759723853103,-501.25249527,0.00016438,2]
[389575120,1759723853114,-1000.0,0.00016438,2]
[389575122,1759723853124,-1000.0,0.00016438,2]
[389575124,1759723853133,-1000.0,0.00016438,2]
[389575126,1759723853142,-1000.0,0.00016438,2]
[389575128,1759723853152,-151.0,0.00016438,2]
[389575130,1759723853162,-1000.0,0.00016438,2]
[389575132,1759723853171,-1007.251739,0.00016438,2]
[389575134,1759723853180,-501.50980364,0.00016438,2]
[389575136,1759723853190,-500.0,0.00016438,2]
[389575138,1759723853200,-500.0,0.00016438,2]
[389575140,1759723853210,-8649.95,0.00016438,2]
[389575142,1759723853219,-151.0,0.00016438,2]
[389575144,1759723853228,-151.0,0.00016438,2]
[389575145,1759723853238,-2967.35,0.00016438,2]
[389575148,1759723853248,-268.30997419,0.00016438,2]
[389575150,1759723853258,-502.86391712,0.00016438,2]
[389575151,1759723853268,-151.301159,0.00016438,2]
[389575153,1759723853277,-500.0,0.00016438,2]
[389575155,1759723853287,-500.0,0.00016438,2]
[389575157,1759723853296,-500.0,0.00016438,2]
[389575159,1759723853306,-151.0,0.00016438,2]
[389575161,1759723853315,-500.0,0.00016438,2]
[389575163,1759723853325,-151.0,0.00016438,2]
[389575165,1759723853335,-500.0,0.00016438,2]
[389575167,1759723853345,-151.0,0.00016438,2]
[389575169,1759723853354,-152.868125,0.00016438,2]
[389575171,1759723853363,-500.0,0.00016438,2]
[389575173,1759723853373,-151.160272,0.00016438,2]
[389575175,1759723853382,-500.0,0.00016438,2]
[389575178,1759723853393,-342.05873572,0.00016438,2]
[389575180,1759723853402,-500.0,0.00016438,2]
[389575182,1759723853411,-500.0,0.00016438,2]
[389575184,1759723853421,-500.0,0.00016438,2]
[389575186,1759723853430,-500.0,0.00016438,2]
[389575188,1759723853440,-198.13239105,0.00016438,2]
[389575190,1759723853449,-500.0,0.00016438,2]
[389575192,1759723853459,-546.79,0.00016438,2]
[389575194,1759723853468,-482.02522309,0.00016438,2]
[389575196,1759723853478,-500.0,0.00016438,2]
[389575198,1759723853488,-933.08,0.00016438,2]
[389575200,1759723853497,-605.12,0.00016438,2]
[389575202,1759723853508,-500.0,0.00016438,2]
[389575204,1759723853522,-151.0,0.00016438,2]
[389575206,1759723853534,-151.0,0.00016438,2]
[389575208,1759723853544,-151.0,0.00016438,2]
[389575209,1759723853552,-151.0,0.00016438,2]
[389575210,1759723853562,-151.0,0.00016438,2]
[389575211,1759723853572,-151.0,0.00016438,2]
[389575212,1759723853586,-151.0,0.00016438,2]
[389575213,1759723853596,-151.0,0.00016438,2]
[389575214,1759723853605,-151.0,0.00016438,2]
[389575215,1759723853614,-151.0,0.00016438,2]
[389575216,1759723853624,-151.0,0.00016438,2]
[389575217,1759723853634,-151.0,0.00016438,2]
[389575218,1759723853643,-151.0,0.00016438,2]
[389575219,1759723853652,-151.0,0.00016438,2]
[389575220,1759723853662,-151.0,0.00016438,2]
[389575221,1759723853672,-151.0,0.00016438,2]
[389575222,1759723853680,-151.0,0.00016438,2]
[389575223,1759723853690,-283.959934,0.00016438,2]
[389575224,1759723853699,-1000.0,0.00016438,2]
[389575225,1759723853708,-1500.0,0.00016438,2]
[389575226,1759723853717,-151.0,0.00016438,2]
[389575227,1759723853725,-151.0,0.00016438,2]
[389575228,1759723853735,-151.0,0.00016438,2]
[389575229,1759723853743,-151.0,0.00016438,2]
[389575230,1759723853752,-151.0,0.00016438,2]
[389575231,1759723853761,-151.0,0.00016438,2]
[389575232,1759723853770,-186.481256,0.00016438,2]
[389575233,1759723853779,-256.06471126,0.00016438,2]
[389575234,1759723853788,-339.0,0.00016469,2]
[389575235,1759723853797,-500.0,0.00016473,2]
[389575236,1759723853806,-500.18686736,0.00016473,2]
[389575237,1759723853815,-500.0,0.00016473,2]
[389575238,1759723853825,-500.0,0.00016473,2]
[389575239,1759723853834,-214.96446922,0.00016473,2]
[389575240,1759723853843,-501.03087857,0.00016473,2]
[389575241,1759723853853,-500.88825014,0.00016473,2]
[389575242,1759723853862,-501.08881674,0.00016473,2]
[389575243,1759723853872,-500.93884573,0.00016473,2]
[389575244,1759723853881,-500.0,0.00016473,2]
[389575245,1759723853891,-500.38614577,0.00016473,2]
[389575246,1759723853900,-500.0,0.00016473,2]
[389575247,1759723853910,-200.18078479,0.00016473,2]
[389575248,1759723853919,-500.0,0.00016473,2]
[389575249,1759723853929,-438.29029447,0.00016473,2]
[389575250,1759723853938,-201.17315359,0.00016473,2]
[389575251,1759723853948,-200.30095249,0.00016473,2]
[389575252,1759723853957,-500.0,0.00016473,2]
[389575253,1759723853966,-500.0,0.00016473,2]
[389575254,1759723853975,-452.96937508,0.00016473,2]
[389575255,1759723853986,-500.35889977,0.00016473,2]
[389575256,1759723853996,-165.13805503,0.00016473,2]
[389575257,1759723854005,-500.0,0.00016473,2]
[389575258,1759723854015,-500.30974677,0.00016473,2]
[389575259,1759723854024,-501.24197452,0.00016473,2]
[389575260,1759723854034,-500.45597933,0.00016473,2]
[389575261,1759723854084,-500.0,0.00016473,2]
[389575262,1759723854093,-159.618289,0.00016473,2]
[389575263,1759723854103,-500.0,0.00016473,2]
[389575264,1759723854112,-484.29988071,0.00016473,2]
[389575265,1759723854122,-500.0,0.00016473,2]
[389575266,1759723854131,-500.0,0.00016473,2]
[389575267,1759723854141,-500.0,0.00016473,2]
[389575268,1759723854151,-500.0,0.00016473,2]
[389575269,1759723854161,-500.0,0.00016473,2]
[389575270,1759723854170,-500.47474524,0.00016473,2]
[389575272,1759723854180,-500.0,0.00016473,2]
[389575274,1759723854189,-500.0,0.00016473,2]
[389575276,1759723854198,-500.0,0.00016473,2]
[389575278,1759723854207,-500.12992458,0.00016473,2]
[389575280,1759723854217,-500.0,0.00016473,2]
[389575282,1759723854226,-500.0,0.00016473,2]
[389575284,1759723854236,-500.0,0.00016473,2]
[389575286,1759723854245,-500.50182678,0.00016473,2]
[389575288,1759723854254,-500.0,0.00016473,2]
[389575290,1759723854263,-500.0,0.00016473,2]
[389575292,1759723854273,-261.35931636,0.00016473,2]
[389575294,1759723854282,-500.90171502,0.00016473,2]
[389575296,1759723854291,-500.0,0.00016473,2]
[389575298,1759723854300,-265.24273249,0.00016473,2]
[389575300,1759723854309,-500.0,0.00016473,2]
[389575302,1759723854318,-500.0,0.00016473,2]
[389575304,1759723854327,-301.4941176,0.00016473,2]
[389575306,1759723854335,-500.5796251,0.00016473,2]
[389575308,1759723854344,-374.38840679,0.00016473,2]
[389575310,1759723854354,-500.0,0.00016473,2]
[389575312,1759723854363,-500.81577523,0.00016473,2]
[389575314,1759723854371,-500.22290047,0.00016473,2]
[389575316,1759723854380,-500.0,0.00016473,2]
[389575317,1759723854389,-500.0,0.00016473,2]
[389575319,1759723854400,-506.55820238,0.00016473,2]
[389575321,1759723854409,-500.0,0.00016473,2]
[389575323,1759723854418,-500.0,0.00016473,2]
[389575325,1759723854427,-500.0,0.00016473,2]
[389575327,1759723854437,-324.0,0.00016509,2]
[389575329,1759723854448,-247.0,0.00016512,2]
[389575331,1759723854456,-168.0,0.00016562,2]
[389575332,1759723854466,-339.0,0.00016611,2]
[389575334,1759723854475,-199.64,0.00016612,2]
[389575336,1759723854485,-1609.00606821,0.00016646,2]
[389575338,1759723854494,-6485.40779885,0.00016681,2]
[389575340,1759723854504,-161.90317722,0.00016711,2]
[389575342,1759723854513,-500.0,0.00016712,2]
[389575344,1759723854523,-547.89180747,0.00016712,2]
[389575346,1759723854532,-500.0,0.00016712,2]
[389575348,1759723854541,-151.0,0.00016712,2]
[389575350,1759723854550,-500.0,0.00016712,2]
[389575352,1759723854559,-262.74408215,0.00016712,2]
[389575354,1759723854567,-151.0,0.00016712,2]
[389575356,1759723854577,-198.0,0.00016712,2]
[389575358,1759723854591,-151.0,0.00016712,2]
[389575360,1759723854600,-1237.0,0.00016712,2]
[389575362,1759723854609,-500.0,0.00016712,2]
[389575364,1759723854617,-500.0,0.00016712,2]
[389575366,1759723854626,-151.0,0.00016712,2]
[389575367,1759723854636,-500.0,0.00016712,2]
[389575369,1759723854648,-151.0,0.00016712,2]
[389575371,1759723854657,-151.0,0.00016712,2]
[389575373,1759723854666,-151.0,0.00016712,2]
[389575375,1759723854675,-151.0,0.00016712,2]
[389575377,1759723854684,-610.0316428,0.00016712,2]
[389575379,1759723854692,-500.0,0.00016712,2]
[389575381,1759723854701,-500.0,0.00016712,2]
[389575383,1759723854710,-500.0,0.00016712,2]
[389575385,1759723854719,-151.0,0.00016712,2]
[389575387,1759723854728,-181.465044,0.00016712,2]
[389575388,1759723854737,-151.0,0.00016712,2]
[389575390,1759723854746,-151.0,0.00016712,2]
[389575392,1759723854755,-151.0,0.00016712,2]
[389575394,1759723854763,-500.0,0.00016712,2]
[389575396,1759723854772,-151.0,0.00016712,2]
[389575398,1759723854781,-151.0,0.00016712,2]
[389575400,1759723854789,-500.0,0.00016712,2]
[389575402,1759723854798,-500.0,0.00016712,2]
[389575404,1759723854807,-504.47572479,0.00016712,2]
[389575406,1759723854816,-500.0,0.00016712,2]
[389575408,1759723854826,-500.0,0.00016712,2]
[389575410,1759723854835,-500.0,0.00016712,2]
[389575412,1759723854843,-500.0,0.00016712,2]
[389575413,1759723854853,-151.0,0.00016712,2]
[389575415,1759723854862,-500.0,0.00016712,2]
[389575417,1759723854871,-486.31452965,0.00016712,2]
[389575419,1759723854880,-500.0,0.00016712,2]
[389575421,1759723854888,-500.0,0.00016712,2]
[389575423,1759723854898,-505.87824904,0.00016712,2]
[389575424,1759723854908,-500.0,0.00016712,2]
[389575426,1759723854916,-500.0,0.00016712,2]
[389575428,1759723854925,-500.0,0.00016712,2]
[389575430,1759723854935,-500.0,0.00016712,2]
[389575432,1759723854944,-500.0,0.00016712,2]
[389575434,1759723854954,-662.82,0.00016712,2]
[389575436,1759723854964,-672.15,0.00016712,2]
[389575438,1759723854973,-500.0,0.00016712,2]
[389575440,1759723854982,-500.0,0.00016712,2]
[389575442,1759723854991,-500.0,0.00016712,2]
[389575444,1759723855000,-500.0,0.00016712,2]
[389575446,1759723855009,-500.0,0.00016712,2]
[389575447,1759723855019,-500.0,0.00016712,2]
[389575449,1759723855028,-1552.97,0.00016712,2]
[389575451,1759723855037,-500.0,0.00016712,2]
[389575453,1759723855046,-500.0,0.00016712,2]
[389575455,1759723855055,-500.0,0.00016712,2]
[389575457,1759723855064,-500.0,0.00016712,2]
[389575459,1759723855073,-500.0,0.00016712,2]
[389575461,1759723855082,-500.0,0.00016712,2]
[389575463,1759723855091,-500.0,0.00016712,2]
[389575465,1759723855100,-500.0,0.00016712,2]
[389575467,1759723855108,-500.0,0.00016712,2]
[389575469,1759723855117,-500.0,0.00016712,2]
[389575471,1759723855126,-500.0,0.00016712,2]
[389575472,1759723855134,-500.0,0.00016712,2]
[389575474,1759723855145,-500.0,0.00016712,2]
[389575476,1759723855153,-500.0,0.00016712,2]
[389575478,1759723855162,-500.0,0.00016712,2]
[389575480,1759723855172,-420.0,0.00016712,2]
[389575482,1759723855182,-506.73271605,0.00016712,2]
[389575484,1759723855191,-500.0,0.00016712,2]
[389575486,1759723855200,-500.0,0.00016712,2]
[389575488,1759723855210,-500.0,0.00016712,2]
[389575490,1759723855219,-500.0,0.00016712,2]
[389575492,1759723855228,-500.0,0.00016712,2]
[389575494,1759723855237,-500.0,0.00016712,2]
[389575496,1759723855247,-1446.12,0.00016712,2]
[389575498,1759723855256,-500.0,0.00016712,2]
[389575500,1759723855265,-500.0,0.00016712,2]
[389575502,1759723855274,-500.0,0.00016712,2]
[389575504,1759723855282,-500.0,0.00016712,2]
[389575506,1759723855291,-503.88567847,0.00016712,2]
[389575508,1759723855300,-964.86,0.00016712,2]
[389575510,1759723855309,-500.0,0.00016712,2]
[389575511,1759723855318,-507.35187427,0.00016712,2]
[389575513,1759723855327,-500.0,0.00016712,2]
[389575515,1759723855336,-500.0,0.00016712,2]
[389575517,1759723855346,-500.0,0.00016712,2]
[389575519,1759723855355,-504.31784967,0.00016712,2]
[389575521,1759723855364,-251.3718376,0.00016712,2]
[389575523,1759723855374,-822.39,0.00016712,2]
[389575525,1759723855383,-500.0,0.00016712,2]
[389575527,1759723855394,-500.0,0.00016712,2]
[389575529,1759723855403,-500.0,0.00016712,2]
[389575531,1759723855412,-343.78287781,0.00016712,2]
[389575533,1759723855421,-500.0,0.00016712,2]
[389575535,1759723855432,-500.0,0.00016712,2]
[389575537,1759723855442,-883.1,0.00016712,2]
[389575539,1759723855451,-500.0,0.00016712,2]
[389575541,1759723855461,-500.0,0.00016712,2]
[389575543,1759723855473,-500.0,0.00016712,2]
[389575545,1759723855485,-500.0,0.00016712,2]
[389575547,1759723855494,-504.68248133,0.00016712,2]
[389575549,1759723855503,-500.0,0.00016712,2]
[389575551,1759723855512,-500.0,0.00016712,2]
[389575553,1759723855521,-500.0,0.00016712,2]
[389575555,1759723855530,-502.4384106,0.00016712,2]
[389575557,1759723855539,-275.36406697,0.00016712,2]
[389575559,1759723855548,-500.0,0.00016712,2]
[389575561,1759723855557,-500.0,0.00016712,2]
[389575563,1759723855566,-662.57,0.00016712,2]
[389575565,1759723855575,-500.0,0.00016712,2]
[389575567,1759723855589,-579.34,0.00016712,2]
[389575569,1759723855599,-500.0,0.00016712,2]
[389575571,1759723855607,-500.0,0.00016712,2]
[389575573,1759723855617,-500.0,0.00016712,2]
[389575575,1759723855626,-500.0,0.00016712,2]
[389575577,1759723855636,-500.0,0.00016712,2]
[389575578,1759723855648,-500.0,0.00016712,2]
[389575580,1759723855657,-500.0,0.00016712,2]
[389575582,1759723855667,-500.0,0.00016712,2]
[389575584,1759723855676,-883.97,0.00016712,2]
[389575586,1759723855685,-500.0,0.00016712,2]
[389575588,1759723855694,-722.04,0.00016712,2]
[389575590,1759723855704,-630.48,0.00016712,2]
[389575592,1759723855714,-500.0,0.00016712,2]
[389575594,1759723855724,-500.15551848,0.00016712,2]
[389575596,1759723855733,-500.0,0.00016712,2]
[389575598,1759723855741,-500.0,0.00016712,2]
[389575600,1759723855751,-1282.56,0.00016712,2]
[389575602,1759723855761,-500.0,0.00016712,2]
[389575604,1759723855770,-500.0,0.00016712,2]
[389575606,1759723855779,-500.0,0.00016712,2]
[389575608,1759723855788,-504.29143349,0.00016712,2]
[389575610,1759723855799,-500.0,0.00016712,2]
[389575612,1759723855808,-540.15,0.00016712,2]
[389575614,1759723855818,-1361.66,0.00016712,2]
[389575616,1759723855827,-500.0,0.00016712,2]
[389575618,1759723855837,-500.0,0.00016712,2]
[389575620,1759723855846,-500.0,0.00016712,2]
[389575621,1759723855856,-500.0,0.00016712,2]
[389575623,1759723855865,-596.09,0.00016712,2]
[389575625,1759723855874,-500.0,0.00016712,2]
[389575627,1759723855884,-500.0,0.00016712,2]
[389575629,1759723855893,-186.4969072,0.00016712,2]
[389575631,1759723855903,-500.0,0.00016712,2]
[389575633,1759723855913,-500.0,0.00016712,2]
[389575634,1759723855922,-500.0,0.00016712,2]
[389575635,1759723855931,-500.0,0.00016712,2]
[389575636,1759723855941,-522.15,0.00016712,2]
[389575637,1759723855950,-500.0,0.00016712,2]
[389575638,1759723855959,-482.8311456,0.00016712,2]
[389575639,1759723855968,-500.0,0.00016712,2]
[389575640,1759723855977,-500.0,0.00016712,2]
[389575641,1759723855986,-893.87,0.00016712,2]
[389575642,1759723855995,-505.87355636,0.00016712,2]
[389575643,1759723856004,-500.0,0.00016712,2]
[389575644,1759723856013,-500.0,0.00016712,2]
[389575645,1759723856022,-500.0,0.00016712,2]
[389575646,1759723856032,-500.0,0.00016712,2]
[389575647,1759723856042,-4935.53,0.00016712,2]
[389575648,1759723856051,-500.0,0.00016712,2]
[389575649,1759723856061,-1198.4,0.00016712,2]
[389575650,1759723856070,-500.0,0.00016712,2]
[389575651,1759723856080,-500.0,0.00016712,2]
[389575652,1759723856089,-500.0,0.00016712,2]
[389575653,1759723856098,-500.0,0.00016712,2]
[389575654,1759723856108,-698.85,0.00016712,2]
[389575655,1759723856117,-500.0,0.00016712,2]
[389575656,1759723856126,-844.68,0.00016712,2]
[389575657,1759723856135,-509.75,0.00016712,2]
[389575658,1759723856144,-1392.88,0.00016712,2]
[389575659,1759723856153,-500.0,0.00016712,2]
[389575660,1759723856163,-972.7,0.00016712,2]
[389575661,1759723856172,-500.0,0.00016712,2]
[389575662,1759723856181,-502.85424071,0.00016712,2]
[389575663,1759723856191,-178.13544214,0.00016712,2]
[389575665,1759723856200,-890.87,0.00016712,2]
[389575666,1759723856209,-8493.09,0.00016712,2]
[389575667,1759723856218,-483.72807827,0.00016712,2]
[389575669,1759723856228,-500.0,0.00016712,2]
[389575671,1759723856237,-692.93,0.00016712,2]
[389575673,1759723856246,-780.82,0.00016712,2]
[389575675,1759723856255,-1349.17,0.00016712,2]
[389575677,1759723856264,-3912.65,0.00016712,2]
[389575679,1759723856274,-703.15,0.00016712,2]
[389575681,1759723856286,-690.11,0.00016712,2]
[389575683,1759723856295,-504.044913,0.00016712,2]
[389575685,1759723856306,-305.69,0.00016712,2]
[389575687,1759723856315,-500.0,0.00016712,2]
[389575689,1759723856325,-500.0,0.00016712,2]
[389575691,1759723856333,-500.0,0.00016712,2]
[389575694,1759723856344,-913.55,0.00016712,2]
[389575696,1759723856354,-500.0,0.00016712,2]
[389575698,1759723856363,-6856.89,0.00016712,2]
[389575700,1759723856373,-502.65065108,0.00016712,2]
[389575701,1759723856383,-500.0,0.00016712,2]
[389575703,1759723856393,-500.0,0.00016712,2]
[389575706,1759723856403,-500.0,0.00016712,2]
[389575707,1759723856412,-500.0,0.00016712,2]
[389575710,1759723856422,-668.17,0.00016712,2]
[389575712,1759723856432,-1467.04,0.00016712,2]
[389575714,1759723856442,-552.5,0.00016712,2]
[389575716,1759723856451,-1297.35,0.00016712,2]
[389575718,1759723856460,-500.0,0.00016712,2]
[389575720,1759723856470,-500.0,0.00016712,2]
[389575722,1759723856479,-500.0,0.00016712,2]
[389575724,1759723856489,-3602.48,0.00016712,2]
[389575726,1759723856498,-500.0,0.00016712,2]
[389575728,1759723856509,-500.0,0.00016712,2]
[389575730,1759723856519,-500.0,0.00016712,2]
[389575732,1759723856528,-3217.79,0.00016712,2]
[389575734,1759723856537,-500.0,0.00016712,2]
[389575736,1759723856546,-819.59,0.00016712,2]
[389575738,1759723856556,-502.51534436,0.00016712,2]
[389575740,1759723856566,-500.0,0.00016712,2]
[389575742,1759723856576,-500.0,0.00016712,2]
[389575744,1759723856590,-500.0,0.00016712,2]
[389575746,1759723856600,-500.0,0.00016712,2]
[389575748,1759723856610,-500.0,0.00016712,2]
[389575750,1759723856619,-500.0,0.00016712,2]
[389575752,1759723856629,-500.0,0.00016712,2]
[389575754,1759723856638,-500.0,0.00016712,2]
[389575756,1759723856647,-10079.61,0.00016712,2]
[389575758,1759723856658,-500.0,0.00016712,2]
[389575760,1759723856668,-762.34,0.00016712,2]
[389575762,1759723856677,-575.43,0.00016712,2]
[389575764,1759723856687,-500.0,0.00016712,2]
[389575766,1759723856696,-1227.35,0.00016712,2]
[389575768,1759723856705,-513.18,0.00016712,2]
[389575770,1759723856715,-1685.91,0.00016712,2]
[389575772,1759723856724,-999.44,0.00016712,2]
[389575774,1759723856733,-500.0,0.00016712,2]
[389575776,1759723856743,-500.0,0.00016712,2]
[389575778,1759723856752,-503.55123714,0.00016712,2]
[389575780,1759723856762,-500.0,0.00016712,2]
[389575782,1759723856771,-500.0,0.00016712,2]
[389575784,1759723856781,-2369.05,0.00016712,2]
[389575786,1759723856790,-500.0,0.00016712,2]
[389575788,1759723856800,-500.0,0.00016712,2]
[389575790,1759723856809,-500.0,0.00016712,2]
[389575792,1759723856819,-1270.96,0.00016712,2]
[389575794,1759723856828,-1117.65,0.00016712,2]
[389575796,1759723856837,-3482.77,0.00016712,2]
[389575798,1759723856846,-647.5,0.00016712,2]
[389575800,1759723856856,-1182.74,0.00016712,2]
[389575802,1759723856865,-500.0,0.00016712,2]
[389575804,1759723856874,-500.0,0.00016712,2]
[389575806,1759723856883,-642.62,0.00016712,2]
[389575808,1759723856892,-500.0,0.00016712,2]
[389575810,1759723856903,-644.88,0.00016712,2]
[389575812,1759723856913,-1709.3,0.00016712,2]
[389575814,1759723856922,-1405.76,0.00016712,2]
[389575816,1759723856932,-425.99174734,0.00016712,2]
[389575818,1759723856942,-500.0,0.00016712,2]
[389575820,1759723856951,-4118.02,0.00016712,2]
[389575822,1759723856961,-500.0,0.00016712,2]
[389575824,1759723856970,-500.0,0.00016712,2]
[389575826,1759723856980,-500.0,0.00016712,2]
[389575828,1759723856990,-500.0,0.00016712,2]
[389575831,1759723857000,-500.0,0.00016712,2]
[389575833,1759723857009,-970.74,0.00016712,2]
[389575834,1759723857019,-500.0,0.00016712,2]
[389575836,1759723857029,-2049.78,0.00016712,2]
[389575838,1759723857038,-500.0,0.00016712,2]
[389575840,1759723857048,-500.0,0.00016712,2]
[389575842,1759723857059,-8649.95,0.00016712,2]
[389575844,1759723857069,-2967.35,0.00016712,2]